Cogmind - Beta 10.2 @@@ ROGUE MODE // 2021.10.21 @ 05:29:42 Player: Alexis Result: Self-destructed Performance ------------- Evolutions (1) 500 Regions Visited (2) 400 Robots Destroyed (17) 85 Value Destroyed (347) 347 Prototype IDs (0) 0 Alien Tech Used (0) 0 Bonus (0) 0 TOTAL SCORE: 1332 Bonus ------- None Cogmind --------- Core Integrity 114/400 Matter 300/300 Energy 100/100 System Corruption 0% Temperature Cool (6) Movement Core (50) Location -9/Materials Parts ------- > --- POWER (2) -------- (None) > --- PROPULSION (3) --- (None) > --- UTILITY (2) ------ (None) > --- WEAPON (2) ------- (None) > --- INVENTORY (4) ---- Light Treads Light Treads Signal Interpreter Peak State ------------ > --- POWER ------------ Light Ion Engine Light Ion Engine > --- PROPULSION ------- Light Treads Light Treads Light Treads > --- UTILITY ---------- Small Storage Unit Medium Matter Pod > --- WEAPON ----------- EM Pulse Gun Light Assault Rifle > --- INVENTORY -------- Light Treads Light Treads Signal Interpreter [Rating: 9] Favorites ----------- Power Light Ion Engine Engine Light Ion Engine Propulsion Light Treads Treads Light Treads Leg Aluminum Leg Utility Small Storage Unit Storage Small Storage Unit Weapon Light Assault Rifle Energy Gun EM Pulse Gun Ballistic Gun Light Assault Rifle Build | -11 -10 -9 ------- Run | Scr Mat Mat Slots Evolved 2 | . . 2 Power 1 | . . 1 Propulsion 1 | . . 1 Utility . | . . . Weapon . | . . . Parts Attached 14 | 6 5 3 Power 2 | 1 . 1 Engine 2 | 1 . 1 Core . | . . . Reactor . | . . . Propulsion 5 | 2 2 1 Treads 3 | . 2 1 Leg 2 | 2 . . Wheel . | . . . Hover . | . . . Flight . | . . . Utility 2 | 1 1 . Device . | . . . Storage 2 | 1 1 . Processor . | . . . Hackware . | . . . Protection . | . . . Artifact . | . . . Weapon 5 | 2 2 1 Energy Gun 4 | 2 1 1 Energy Cannon . | . . . Ballistic Gun 1 | . 1 . Ballistic Cannon . | . . . Launcher . | . . . Special Weapon . | . . . Impact Weapon . | . . . Slashing Weapon . | . . . Piercing Weapon . | . . . Special Melee Weapon . | . . . Unidentified Prototypes . | . . . Parts Lost 13 | . 3 10 Power 2 | . . 2 Propulsion 4 | . 1 3 Utility 2 | . . 2 Weapon 5 | . 2 3 Highest Loss Streak 9 | . 2 9 Average Slot Usage (%) 81 | . 86 77 Engine 15 | . 14 15 Treads 23 | . 19 27 Leg 3 | . 8 . Storage 20 | . 21 20 Energy Gun 7 | . 10 4 Ballistic Gun 10 | . 11 9 Naked Turns 4 | . . 4 Heaviest Build 15 | 10 12 15 Greatest Support 60 | 20 40 60 Greatest Overweight (x) 2 | . . 2 Average Overweight (x) . | . . . Largest Inventory Capacity 6 | 6 6 6 Average Capacity 5 | 4 6 5 Most Carried 6 | 4 6 4 Average Carried 3 | 3 4 3 Final Capacity 6 | 6 6 4 Final Carried 5 | 4 5 3 Class Distribution -------------------- 100% | Mutant Dominant Class ---------------- Mutant | -10/Materials Mutant | -9/Materials Resources | -11 -10 -9 ----------- Run | Scr Mat Mat Matter Collected 314 | 62 120 132 Remotely . | . . . Salvage Created 413 | . 198 215 Parts 34 | . 15 19 Haulers Intercepted . | . . . Recyclers Shooed 1 | . . 1 Parts Field Recycled . | . . . Retrieved Matter . | . . . Parts Self-Destructed . | . . . Prevented . | . . . Kills | -11 -10 -9 ------- Run | Scr Mat Mat Combat Hostiles Destroyed 15 | . 6 9 Melee 3 | . . 3 Guns 12 | . 6 6 Classes Destroyed 4 | . 3 1 Worker 1 | . . 1 Watcher 1 | . 1 . Swarmer 9 | . 3 6 Grunt 6 | . 3 3 Best Kill Streak 7 | . 3 7 Combat Bots Only 4 | . 3 4 Max Kills in Single Turn 2 | . 2 1 Gunslinging 1 | . 1 . Exploded . | . . . Melee 1 | . . 1 Uniques/NPCs Destroyed . | . . . Combat | -11 -10 -9 -------- Run | Scr Mat Mat Damage Taken 1476 | . 418 1058 Core 324 | . 38 286 Absorbed by Shields . | . . . Core Remaining (%) 92 | 100 84 . Volleys Fired 68 | . 30 38 Largest 2 | . 2 2 Hottest 80 | . 80 65 Shots Fired 91 | . 46 45 Gun 91 | . 46 45 Cannon . | . . . Launcher . | . . . Special . | . . . Kinetic 56 | . 21 35 Thermal 20 | . 17 3 Explosive . | . . . Electromagnetic 15 | . 8 7 Robot Hit Streak 6 | . 6 6 Robot Miss Streak 4 | . 2 4 Penetration Max . | . . . Secondary Targets 5 | . 4 1 Max Gunslinging Chain 1 | . 1 1 Shots Hit Robots 53 | . 30 23 Core Hits 31 | . 14 17 Critical Hits 2 | . 2 . Critical Kills 1 | . 1 . Critical Parts Destroyed 1 | . 1 . Melee Attacks . | . . . Impact . | . . . Slashing . | . . . Piercing . | . . . Sneak Attacks . | . . . Combat Hostiles . | . . . Follow-up Attacks . | . . . Damage Inflicted 565 | . 269 296 Guns 523 | . 269 254 Cannons . | . . . Explosions . | . . . Melee . | . . . Ramming 42 | . . 42 Kinetic 233 | . 85 148 Thermal 137 | . 120 17 Explosive . | . . . Electromagnetic 153 | . 64 89 Impact . | . . . Slashing . | . . . Piercing . | . . . Highest Corruption . | . . . Average Corruption . | . . . Corruption Purged . | . . . Overload Shots . | . . . Overflow Damage . | . . . Projectiles . | . . . Explosions . | . . . Melee . | . . . Knockbacks . | . . . Impact . | . . . Kinetic . | . . . Secondary . | . . . Self-Inflicted Damage 12 | . . 12 Shots . | . . . Rammed 12 | . . 12 Targets Rammed 14 | . . 14 Kicked . | . . . Crushed 2 | . . 2 Highest Temperature 177 | . 177 72 Average Temperature 63 | . 93 21 Received Heat Transfer 456 | . 195 261 Siege Activations . | . . . Robots Corrupted . | . . . Combat Hostiles . | . . . Parts Fried . | . . . Impact Corruptions . | . . . Robots Melted . | . . . Combat Hostiles . | . . . Parts Melted . | . . . Heat Transferred 312 | . 275 37 Parts Sabotaged . | . . . Parts Stolen . | . . . Parts Stripped . | . . . Power Chain Reactions . | . . . Missiles Intercepted . | . . . Alert | -11 -10 -9 ------- Run | Scr Mat Mat Peak Influence 214 | . 177 214 Initial 74 | . . 74 Average 103 | . 76 149 Maximum Alert Level 1 | . . 1 Low Security (%) 95 | 100 100 90 Level 1 4 | . . 9 Level 2 . | . . . Level 3 . | . . . Level 4 . | . . . Level 5 . | . . . High Security . | . . . Max Security . | . . . Squads Dispatched . | . . . Investigation . | . . . Extermination . | . . . Reinforcement . | . . . Assault . | . . . Garrison . | . . . Intercept . | . . . Construction Impeded . | . . . Haulers Reinforced . | . . . Stealth | -11 -10 -9 --------- Run | Scr Mat Mat Distress Signals 2 | . 2 . Communications Jammed . | . . . Distress Signals . | . . . Times Spotted 25 | . 12 13 Peak Tracking Total 6 | . 6 6 Tactical Retreats 2 | . 2 . Traps | -11 -10 -9 ------- Run | Scr Mat Mat Traps Triggered . | . . . Indirectly . | . . . Trap Hack Attempts . | . . . Triggered . | . . . Disarmed . | . . . Reprogrammed . | . . . Reused . | . . . Traps Extracted . | . . . Installed . | . . . Triggered . | . . . Machines | -11 -10 -9 ---------- Run | Scr Mat Mat Machines Disabled 1 | . 1 . Max in Single Turn 1 | . 1 . Machines Sabotaged . | . . . Garrisons Compromised . | . . . Overloaded Fab Kills . | . . . Fab Network Shutdowns . | . . . Hacking | -11 -10 -9 --------- Run | Scr Mat Mat Machines Accessed 1 | . 1 . Terminals . | . . . Fabricators . | . . . Repair Stations . | . . . Recycling Units 1 | . 1 . Scanalyzers . | . . . Garrison Access . | . . . Total Hacks 2 | . 2 . Successful 2 | . 2 . Failed . | . . . Catastrophic . | . . . Database Lockouts . | . . . Manual . | . . . Terminals . | . . . Fabricators . | . . . Repair Stations . | . . . Recycling Units 2 | . 2 . Scanalyzers . | . . . Garrison Access . | . . . Terminal Hacks . | . . . Fabricator Hacks . | . . . Repair Station Hacks . | . . . Recycling Unit Hacks 2 | . 2 . Process 1 | . 1 . Report Inventory 1 | . 1 . Scanalyzer . | . . . Garrison Access Hacks . | . . . Unauthorized Hacks . | . . . Terminals . | . . . Fabricators . | . . . Repair Stations . | . . . Recycling Units . | . . . Scanalyzers . | . . . Garrison Access . | . . . Data Cores Recovered . | . . . Used . | . . . Hacking Detections . | . . . Full Trace Events . | . . . Feedback Events . | . . . Feedback Blocked . | . . . Robot Schematics Acquired . | . . . Robots Built . | . . . Matter . | . . . Time . | . . . Total Robot Build Rating . | . . . Part Schematics Acquired . | . . . Parts Built . | . . . Matter . | . . . Time . | . . . Total Part Build Rating . | . . . Parts Repaired . | . . . Time . | . . . Parts Recycled . | . . . Recycled Matter 164 | . 164 . Retrieved Matter . | . . . Retrieved Components . | . . . Parts Scanalyzed . | . . . Part Schematics Acquired . | . . . Parts Damaged . | . . . Bothacking | -11 -10 -9 ------------ Run | Scr Mat Mat Used RIF Installer . | . . . Robots Hacked . | . . . Non-combat . | . . . Combat . | . . . Robot Hacks Applied . | . . . Relay Couplers Released . | . . . Robots Rewired . | . . . Allies Hacked . | . . . Hacks Repelled . | . . . Allies | -11 -10 -9 -------- Run | Scr Mat Mat Total Allies . | . . . Largest Group . | . . . Highest-Rated Group . | . . . Highest-Rated Ally . | . . . Total Orders . | . . . Ally Attacks . | . . . Total Damage . | . . . Kills . | . . . Allies Corrupted . | . . . Allies Melted . | . . . Intel | -11 -10 -9 ------- Run | Scr Mat Mat Robot Analysis Total . | . . . Derelict Logs Recovered . | . . . Drone Launches . | . . . Drone Recoveries . | . . . Exploration | -11 -10 -9 ------------- Run | Scr Mat Mat Turns Passed 611 | 59 261 291 Spaces Moved 285 | 43 115 127 Core 23 | 8 . 15 Treads 204 | . 92 112 Legs 58 | 35 23 . Wheels . | . . . Hover . | . . . Flight . | . . . Fastest Speed 50 | 50 120 50 Average Speed 145 | 106 152 153 Slowest Speed 160 | 120 160 160 Overloaded Moves . | . . . Propulsion Burnouts . | . . . Robots Hopped . | . . . Cave-ins Triggered . | . . . Exploration Rate (%) 13 | 3 22 14 Regions Visited 2 Branch Regions . Pre-discovered Areas . | . . . Known Exits Taken . | . . . Unknown Exits Taken 2 | 1 1 . Scrap Searched . | . . . Spaces Dug . | . . . Terrain Destroyed . | . . . Melee . | . . . Projectile . | . . . AOE . | . . . Terrain Rammed . | . . . Walls Destroyed . | . . . Machines Disabled . | . . . Actions | -11 -10 -9 --------- Run | Scr Mat Mat Total 397 | 53 160 184 Wait 3 | . 2 1 Move 283 | 42 114 127 Hop . | . . . Pick Up 13 | 5 7 1 Fast Attach 5 | 5 . . Attach 8 | 1 4 3 Detach . | . . . Swap 1 | . 1 . Drop 2 | . 2 . Fire 68 | . 30 38 Melee . | . . . Ram 12 | . . 12 Kick . | . . . Crush 2 | . . 2 Escape Stasis . | . . . Rewire . | . . . Trap . | . . . Miscellaneous . | . . . Route ------- -11/Scrapyard -10/Materials -9/Materials (discovered 1 exit: [*Min]) History --------- Turn | Location | Event 4 | -11/Scrapyard | Discovered new exit (range 15) 60 | -11/Scrapyard | Entered Materials 221 | -10/Materials | Discovered new exit (range 11) 317 | -10/Materials | Build established: Mutant 321 | -10/Materials | Entered another Materials area 321 | -9/Materials | Evolved 2 slots: Power x1, Propulsion x1 472 | -9/Materials | Discovered new exit (range 16) 601 | -9/Materials | Core integrity fell below 50% 612 | -9/Materials | Self-destructed Last Messages --------------- 00495_ R-06 Scavenger collects Lgt. Ion Engine. 00527_ Lgt. Ion Engine destroyed. 00543_ Lgt. Treads destroyed. 00564_ Lgt. Assault Rifle destroyed. 00569_ Crushed G-47 Trooper. 00569_ G-47 Trooper destroyed. 00573_ Med. Matter Pod destroyed. 00577_ Acquired Particle Gun. 00579_ Lgt. Treads destroyed. 00587_ Particle Gun destroyed. 00592_ Slammed into S-10 Pest. 00592_ S-10 Pest destroyed. 00593_ Acquired 20 matter. 00594_ Slammed into S-10 Pest. 00605_ S-10 Pest destroyed. 00606_ Acquired 20 matter. 00608_ Sml. Storage Unit destroyed. 00609_ Slammed into G-34 Mercenary. 00609_ Destabilizing: Core damaged (-16). 00610_ Slammed into G-34 Mercenary. Map ----- +----------------------------------------------------+ | ??????# #???????????????????????? | | ?? +???????????????????????? | | ? """"" #???????????????????????? | | ?? """"" #???????????????????????? | | ?? """"" ##???????????????????????? | | ?? #????????????????????????? | | ??? +????????????????????????? | | ???######### #????????????????????????? | | ??????????########### #????????????????????????? | | ??????????# # #????????????????????????? | | ??????????# # #????????????????????????? | | ??????????# + #????????????????????????? | | ??????????# # #????????????????????????? | | ??????????# + #????????????????????????? | | ??????????# ## ##????????????????????????? | | ??????????# ## #?????????????????????????? | | ??????????# ##+#######???????????????????? | | ??????????#######+### !#???????????????????? | | ???????##???????# #?# """ #???????????????????? | | ???????# #### ### """ * #???????????????????? | | ? # """sY #???????????????????? | | ? %+ r = #???????????????????? | | ? ^# """ #???????????????????? | | ?? ## ######## """% #???????????????????? | | ???????#####????????# """% #???????????????????? | | ????????????????????# @g #???????????????????? | | ????????????????????##########???????????????????? | | ?????????????????????????????????????????????????? | | ?????????????????????????????????????????????????? | | ?????????????????????????????????????????????????? | | ?????????????????????????????????????????????????? | | ?????????????????????????????????????????????????? | | ?????????????????????????????????????????????????? | | ?????????????????????????????????????????????????? | | ?????????????????????????????????????????????????? | | ?????????????????????????????????????????????????? | | ?????????????????????????????????????????????????? | | ?????????????????????????????????????????????????? | | ?????????????????????????????????????????????????? | | ?????????????????????????????????????????????????? | | ?????????????????????????????????????????????????? | | ?????????????????????????????????????????????????? | | ?????????????????????????????????????????????????? | | ?????????????????????????????????????????????????? | | ?????????????????????????????????????????????????? | | ?????????????????????????????????????????????????? | | ?????????????????????????????????????????????????? | | | | | | | +----------------------------------------------------+ Best States ------------- Heat Dissipation 28 Energy Generation 15 Energy Capacity 150 Matter Stores 300 Matter Capacity 400 Sight Range 16 Terrain Scan Density 10 Evasion (%) 50 Recoil Reduction 3 Item Schematics ----------------- None Robot Schematics ------------------ None Fabricated ------------ Nothing Alien Tech Used ----------------- None Achievements -------------- None Challenges ------------ None Game ------ Seed LightningCoolantNetwork Manual? 0 Play Time 00:10:24 Cumulative 12.8 hours Start 2021.10.18 @ 17:51:12 End 2021.10.21 @ 05:29:42 Sessions 2 Manual Loads 0 Difficulty Rogue Special Mode None Game No. 26 Rogue 22 Adventurer 4 Explorer 0 Win Type - Total 0 Types 0/0/0/0/0/0/0/0/0 Lore% 15 Gallery% 21 Achievement% 17 Wizard Run 0 Options --------- ASCII 0 Keyboard 0 Movement Mouse Keybinds 0 Fullscreen 1 Font 18/SmallcapsGlow Map View 76x50 Tactical HUD 1 Map Filters NONE Filters NONE Steam 1 RUN: 729a1e95-9791-4d73-9d8a-7c6884202e40